Workbook

Sheet паспорт
A1: ПАТ "УКРТРАНСГАЗ" | G1: ПАСПОРТ ФІЗИКО-ХІМІЧНИХ ПОКАЗНИКІВ ПРИРОДНОГО ГАЗУ № 26
A2: Філія "УМГ "КИЇВТРАНСГАЗ" | G2: переданого Боярським ЛВУМГ та прийнятого ПАТ "Київоблгаз", ПАТ "Київгаз"
A3: Боярське ЛВУМГ | G3: Маршрут №26
A4: Вимірювальна хіміко-аналітична лабораторія
A5: Свідоцтво № 70А-43-14 чинно до 23.07.2019 р. | K5: по газопроводу "ЄЛЕЦЬ - КУРСЬК -КИЇВ" | V5: за період з | X5: 2017-03-01 | Z5: по | AA5: 2017-03-31
A7: Число місяця | B7: Компонентний склад, % мол. | N7: Фізико-хімічні показники газу обчислені на основі компонентного складу, 101,325 кПа | X7: Температура точки роси за вологою (Р = 3.92 МПа), ºС | Y7: Температура точки роси за вуглеводнями, ºС | Z7: Вміст сірководню, г/м3 | AA7: Вміст меркаптанової сірки, г/м3 | AB7: Вміст механічних домішок, г/м3
N8: Густина абсолютна, кг/м3,при 20 ºС, | O8: Температура вимірювання/згоряння при 20/25°С
B9: метан, С1 | C9: етан, С2 | D9: пропан, С3 | E9: ізо-бутан, і-С4 | F9: н-бутан, н-С4 | G9: нео-пентан, нео-С5 | H9: ізо-пентан, і-С5 | I9: н-пентан, н-С5 | J9: гексани та вищі, С6+ | K9: кисень, О2 | L9: азот, N2 | M9: діоксид вуглецю, CО2 | O9: Теплота згоряння нижча | R9: Теплота згоряння вища | U9: Число Воббе вище
O10: ккал/м3 | P10: МДж/м3 | Q10: кВт⋅год/м3 | R10: ккал/м3 | S10: МДж/м3 | T10: кВт⋅год/м3 | U10: ккал/м3 | V10: МДж/м3 | W10: кВт⋅год/м3
A11: 1 | O11: =P11*238.8459 -> 8194.802829 | P11: 34.31 | Q11: =P11/3.6 -> 9.530555556 | R11: =S11*238.8459 -> 9078.532659 | S11: 38.01 | T11: =S11/3.6 -> 10.55833333 | AC11: =SUM(B11:M11)+$K$42+$N$42 -> 0
A12: 2 | O12: =P12*238.8459 -> 8194.802829 | P12: 34.31 | Q12: 9.530555556 | R12: =S12*238.8459 -> 9078.532659 | S12: 38.01 | T12: 10.55833333 | AC12: 0
A13: 3 | O13: 8194.802829 | P13: 34.31 | Q13: 9.530555556 | R13: 9078.532659 | S13: 38.01 | T13: 10.55833333 | AC13: 0 | AD13: =IF(AC13=100,"ОК"," ") -> 
A14: 4 | O14: 8194.802829 | P14: 34.31 | Q14: 9.530555556 | R14: 9078.532659 | S14: 38.01 | T14: 10.55833333 | AC14: 0 | AD14: =IF(AC14=100,"ОК"," ") -> 
A15: 5 | O15: 8194.802829 | P15: 34.31 | Q15: 9.530555556 | R15: 9078.532659 | S15: 38.01 | T15: 10.55833333 | AC15: 0
A16: 6 | B16: 89.5717 | C16: 5.054 | D16: 1.0719 | E16: 0.1091 | F16: 0.1648 | G16: 0.0035 | H16: 0.0422 | I16: 0.0357 | J16: 0.0744 | K16: 0 | L16: 1.6645 | M16: 2.2083 | N16: 0.7534 | O16: 8218.687419 | P16: 34.41 | Q16: 9.558333333 | R16: 9102.417249 | S16: 38.11 | T16: 10.58611111 | U16: =V16*238.8459 -> 11509.98392 | V16: 48.19 | W16: =V16/3.6 -> 13.38611111 | X16: -14.4 | Y16: -13.6 | AC16: 100.0001
A17: 7 | O17: 8218.687419 | P17: 34.41 | Q17: 9.558333333 | R17: 9102.417249 | S17: 38.11 | T17: 10.58611111 | AC17: 0
A18: 8 | O18: 8218.687419 | P18: 34.41 | Q18: 9.558333333 | R18: 9102.417249 | S18: 38.11 | T18: 10.58611111 | AC18: 0
A19: 9 | O19: 8218.687419 | P19: 34.41 | Q19: 9.558333333 | R19: 9102.417249 | S19: 38.11 | T19: 10.58611111 | AC19: 0
A20: 10 | O20: 8218.687419 | P20: 34.41 | Q20: 9.558333333 | R20: 9102.417249 | S20: 38.11 | T20: 10.58611111 | AC20: 0
A21: 11 | O21: 8218.687419 | P21: 34.41 | Q21: 9.558333333 | R21: 9102.417249 | S21: 38.11 | T21: 10.58611111 | AC21: 0
A22: 12 | O22: 8218.687419 | P22: 34.41 | Q22: 9.558333333 | R22: 9102.417249 | S22: 38.11 | T22: 10.58611111 | AC22: 0
A23: 13 | B23: 89.54 | C23: 5.0863 | D23: 1.0567 | E23: 0.1091 | F23: 0.1672 | G23: 0.0035 | H23: 0.0429 | I23: 0.0353 | J23: 0.061 | K23: 0.01 | L23: 1.7362 | M23: 2.1518 | N23: 0.7529 | O23: 8213.910501 | P23: 34.39 | Q23: 9.552777778 | R23: 9097.640331 | S23: 38.09 | T23: 10.58055556 | U23: =V23*238.8459 -> 11507.59546 | V23: 48.18 | W23: =V23/3.6 -> 13.38333333 | AC23: 100 | AD23: ОК
A24: 14 | O24: 8213.910501 | P24: 34.39 | Q24: 9.552777778 | R24: 9097.640331 | S24: 38.09 | T24: 10.58055556 | AC24: 0
A25: 15 | O25: 8213.910501 | P25: 34.39 | Q25: 9.552777778 | R25: 9097.640331 | S25: 38.09 | T25: 10.58055556 | AC25: 0
A26: 16 | O26: 8213.910501 | P26: 34.39 | Q26: 9.552777778 | R26: 9097.640331 | S26: 38.09 | T26: 10.58055556 | AC26: 0
A27: 17 | O27: 8213.910501 | P27: 34.39 | Q27: 9.552777778 | R27: 9097.640331 | S27: 38.09 | T27: 10.58055556 | AC27: 0
A28: 18 | O28: 8213.910501 | P28: 34.39 | Q28: 9.552777778 | R28: 9097.640331 | S28: 38.09 | T28: 10.58055556 | AC28: 0
A29: 19 | O29: 8213.910501 | P29: 34.39 | Q29: 9.552777778 | R29: 9097.640331 | S29: 38.09 | T29: 10.58055556 | AC29: 0
A30: 20 | B30: 89.5115 | C30: 5.052 | D30: 1.0731 | E30: 0.1129 | F30: 0.1751 | G30: 0.0038 | H30: 0.0469 | I30: 0.0391 | J30: 0.079 | K30: 0.0072 | L30: 1.7371 | M30: 2.1622 | N30: 0.7539 | O30: 8223.464337 | P30: 34.43 | Q30: 9.563888889 | R30: 9107.194167 | S30: 38.13 | T30: 10.59166667 | U30: =V30*238.8459 -> 11509.98392 | V30: 48.19 | W30: =V30/3.6 -> 13.38611111 | X30: -13.1 | Y30: -12.5 | AC30: 99.9999 | AD30: =IF(AC30=100,"ОК"," ") -> 
A31: 21 | O31: =P31*238.8459 -> 8223.464337 | P31: 34.43 | Q31: =P31/3.6 -> 9.563888889 | R31: =S31*238.8459 -> 9107.194167 | S31: 38.13 | T31: =S31/3.6 -> 10.59166667 | AC31: 0
A32: 22 | O32: 8223.464337 | P32: 34.43 | Q32: 9.563888889 | R32: 9107.194167 | S32: 38.13 | T32: 10.59166667 | AC32: 0
A33: 23 | O33: 8223.464337 | P33: 34.43 | Q33: =P33/3.6 -> 9.563888889 | R33: 9107.194167 | S33: 38.13 | T33: =S33/3.6 -> 10.59166667 | AC33: 0 | AD33: =IF(AC33=100,"ОК"," ") -> 
A34: 24 | O34: 8223.464337 | P34: 34.43 | Q34: 9.563888889 | R34: 9107.194167 | S34: 38.13 | T34: 10.59166667 | AC34: 0
A35: 25 | O35: 8223.464337 | P35: 34.43 | Q35: 9.563888889 | R35: 9107.194167 | S35: 38.13 | T35: 10.59166667 | AC35: 0
A36: 26 | O36: 8223.464337 | P36: 34.43 | Q36: 9.563888889 | R36: 9107.194167 | S36: 38.13 | T36: =S36/3.6 -> 10.59166667 | AC36: 0
A37: 27 | B37: 89.6796 | C37: 4.9872 | D37: 1.0464 | E37: 0.1131 | F37: 0.176 | G37: 0.0039 | H37: 0.0477 | I37: 0.0399 | J37: 0.0802 | K37: 0.0073 | L37: 1.7324 | M37: 2.0863 | N37: 0.7524 | O37: 8223.464337 | P37: 34.43 | Q37: 9.563888889 | R37: 9107.194167 | S37: 38.13 | T37: 10.59166667 | U37: =V37*238.8459 -> 11521.92622 | V37: 48.24 | W37: =V37/3.6 -> 13.4 | Z37: 0.006 | AA37: 0.02 | AB37: відсут | AC37: 100 | AD37: ОК
A38: 28 | O38: 8223.464337 | P38: 34.43 | Q38: 9.563888889 | R38: 9107.194167 | S38: 38.13 | T38: 10.59166667 | AC38: 0
A39: 29 | O39: 8223.464337 | P39: 34.43 | Q39: 9.563888889 | R39: 9107.194167 | S39: 38.13 | T39: 10.59166667 | AC39: 0
A40: 30 | O40: 8223.464337 | P40: 34.43 | Q40: 9.563888889 | R40: 9107.194167 | S40: 38.13 | T40: 10.59166667 | AC40: 0
A41: 31 | O41: 8223.464337 | P41: 34.43 | Q41: 9.563888889 | R41: 9107.194167 | S41: 38.13 | T41: 10.59166667 | AC41: 0
A42: Рівень одоризації відповідає чинним нормативним документам | O42: =SUMPRODUCT(O11:O41,' розрахунок'!J7:J37)/' розрахунок'!J38 -> 8215.395703 | P42: =SUMPRODUCT(P11:P41,' розрахунок'!J7:J37)/' розрахунок'!J38 -> 34.39621824 | Q42: =SUMPRODUCT(Q11:Q41,' розрахунок'!J7:J37)/' розрахунок'!J38 -> 9.554505068 | R42: =SUMPRODUCT(R11:R41,' розрахунок'!J7:J37)/' розрахунок'!J38 -> 9099.125533 | S42: =SUMPRODUCT(S11:S41,' розрахунок'!J7:J37)/' розрахунок'!J38 -> 38.09621824 | T42: =SUMPRODUCT(T11:T41,' розрахунок'!J7:J37)/' розрахунок'!J38 -> 10.58228285
H43: Середньозважене значення теплоти згоряння:
B46: Головний інженер Боярського ЛВУМГ Табак С.М. 03.04.2017 р.
C47: Підрозділу підприємства, якому підпорядкована лабораторія | O47: прізвище | R47: підпис | V47: дата
B48: Завідувач вимірювальної хіміко-аналітичної лабораторії Клименко І.А. 03.04.2017 р.
C49: Лабораторія, де здійснювалось вимірювання газу | O49: прізвище | R49: підпис | V49: дата
B50: Начальник служби газовимірювань та метрології Прима Ю.І. 03.04.2017 р.
C51: Підрозділу, відповідального за облік газу за маршрутом | O51: прізвище | R51: підпис | V51: дата

Sheet розрахунок (hidden)
A2: Додаток до Паспорту фізико-хімічних показників природного газу по маршруту № 25
A4: Число місяця | B4: Теплота згоряння вища, МДж/м3 | C4: Київська область | J4: Загальний обсяг газу, м3
C5: Обсяг газу переданого за добу, м3
C6: ГРС ТЕЦ-5 | D6: ГРС - 11 (місто) | E6: ГРС Гнідин | F6: ГРС Конча Заспа | G6: ГРС Бортничі | H6: ГРС Осокорки | I6: ГРС Осокорки-1
A7: 1 | B7: 38.01 | C7: 2749.883 | D7: 132.224 | E7: 12.195 | F7: 41.884 | G7: 57.404 | H7: 0 | I7: 35.281 | J7: =SUM(C7:I7) -> 3028.871
A8: 2 | B8: 38.01 | C8: 2529.943 | D8: 142.589 | E8: 12.663 | F8: 43.202 | G8: 59.307 | H8: 0 | I8: 37.759 | J8: 2825.463
A9: 3 | B9: 38.01 | C9: 1929.882 | D9: 144.627 | E9: 12.649 | F9: 42.107 | G9: 57.043 | H9: 0 | I9: 36.682 | J9: 2222.99
A10: 4 | B10: 38.01 | C10: 1933.474 | D10: 133.055 | E10: 12.286 | F10: 40.419 | G10: 55.434 | H10: 0 | I10: 35.713 | J10: 2210.381
A11: 5 | B11: 38.01 | C11: 1901.837 | D11: 131.851 | E11: 11.763 | F11: 39.056 | G11: 54.83 | H11: 0 | I11: 33.379 | J11: 2172.716
A12: 6 | B12: 38.11 | C12: 1761.03 | D12: 142.111 | E12: 10.997 | F12: 37.429 | G12: 52.001 | H12: 0 | I12: 31.088 | J12: 2034.656
A13: 7 | B13: 38.11 | C13: 1757.007 | D13: 137.397 | E13: 10.453 | F13: 35.796 | G13: 48.888 | H13: 0 | I13: 30.243 | J13: 2019.784
A14: 8 | B14: 38.11 | C14: 1740.592 | D14: 137.062 | E14: 10.718 | F14: 38.052 | G14: 49.736 | H14: 0 | I14: 31.027 | J14: 2007.187
A15: 9 | B15: 38.11 | C15: 1741.948 | D15: 116.243 | E15: 10.905 | F15: 39.759 | G15: 50.219 | H15: 0 | I15: 31.886 | J15: 1990.96
A16: 10 | B16: 38.11 | C16: 1697.71 | D16: 104.793 | E16: 10.334 | F16: 36.697 | G16: 48.563 | H16: 0 | I16: 30.437 | J16: 1928.534
A17: 11 | B17: 38.11 | C17: 1662.412 | D17: 89.56 | E17: 10.901 | F17: 36.761 | G17: 50.312 | H17: 0 | I17: 32.255 | J17: 1882.201
A18: 12 | B18: 38.11 | C18: 1679.164 | D18: 98.316 | E18: 11.428 | F18: 38.859 | G18: 53.003 | H18: 0 | I18: 33.294 | J18: 1914.064
A19: 13 | B19: 38.09 | C19: 1684.904 | D19: 90.619 | E19: 11.005 | F19: 39.287 | G19: 51.886 | H19: 0 | I19: 31.275 | J19: 1908.976
A20: 14 | B20: 38.09 | C20: 1675.197 | D20: 171.157 | E20: 12.913 | F20: 43.058 | G20: 59.876 | H20: 0 | I20: 36.977 | J20: 1999.178
A21: 15 | B21: 38.09 | C21: 2954.062 | D21: 278.448 | E21: 19.874 | F21: 65.62 | G21: 91.52 | H21: 0 | I21: 61.717 | J21: 3471.241
A22: 16 | B22: 38.09 | C22: 1542.229 | D22: 138.027 | E22: 11.586 | F22: 40.249 | G22: 53.271 | H22: 0 | I22: 34.445 | J22: 1819.807
A23: 17 | B23: 38.09 | C23: 1611.391 | D23: 132.165 | E23: 11.604 | F23: 39.514 | G23: 51.59 | H23: 0 | I23: 33.953 | J23: 1880.217
A24: 18 | B24: 38.09 | C24: 1711.671 | D24: 115.925 | E24: 13.37 | F24: 41.949 | G24: 58.77 | H24: 0 | I24: 39.834 | J24: 1981.519
A25: 19 | B25: 38.09 | C25: 1666.207 | D25: 125.82 | E25: 13.294 | F25: 41.663 | G25: 59.762 | H25: 0 | I25: 38.656 | J25: 1945.402
A26: 20 | B26: 38.13 | C26: 1736.432 | D26: 140.154 | E26: 11.631 | F26: 39.725 | G26: 54.755 | H26: 0 | I26: 34.304 | J26: 2017.001
A27: 21 | B27: 38.13 | C27: 1781.828 | D27: 130.31 | E27: 10.534 | F27: 36.228 | G27: 50.646 | H27: 0 | I27: 30.621 | J27: 2040.167
A28: 22 | B28: 38.13 | C28: 1923.383 | D28: 81.09 | E28: 8.085 | F28: 29.714 | G28: 39.749 | H28: 0 | I28: 23.03 | J28: 2105.051
A29: 23 | B29: 38.13 | C29: 2389.022 | D29: 139.627 | E29: 9.737 | F29: 33.176 | G29: 46.23 | H29: 0 | I29: 27.913 | J29: 2645.705
A30: 24 | B30: 38.13 | C30: 2362.282 | D30: 170.513 | E30: 10.336 | F30: 33.161 | G30: 46.366 | H30: 0 | I30: 28.971 | J30: 2651.629
A31: 25 | B31: 38.13 | C31: 2292.812 | D31: 102.446 | E31: 10.205 | F31: 34.647 | G31: 46.082 | H31: 0 | I31: 29.964 | J31: 2516.156
A32: 26 | B32: 38.13 | C32: 2384.757 | D32: 111.866 | E32: 11.578 | F32: 38.235 | G32: 52.979 | H32: 0 | I32: 33.879 | J32: 2633.294
A33: 27 | B33: 38.13 | C33: 2402.733 | D33: 116.407 | E33: 11.214 | F33: 35.088 | G33: 51.154 | H33: 0 | I33: 30.716 | J33: 2647.312
A34: 28 | B34: 38.13 | C34: 2313.35 | D34: 116.103 | E34: 8.672 | F34: 29.148 | G34: 40.725 | H34: 0 | I34: 24.503 | J34: 2532.501
A35: 29 | B35: 38.13 | C35: 2222.113 | D35: 67.591 | E35: 7.546 | F35: 27.051 | G35: 35.189 | H35: 0 | I35: 20.875 | J35: 2380.365
A36: 30 | B36: 38.13 | C36: 2272.12 | D36: 67.648 | E36: 9.137 | F36: 33.916 | G36: 41.689 | H36: 0 | I36: 25.779 | J36: 2450.289
A37: 31 | B37: 38.13 | C37: 2138.876 | D37: 72.326 | E37: 9.755 | F37: 30.978 | G37: 43.854 | H37: 0 | I37: 27.943 | J37: 2323.732
A38: Загальний обсяг газу, м3 | C38: =SUM(C7:C37) -> 62150.251 | D38: 3878.07 | E38: 349.368 | F38: 1182.428 | G38: 1612.833 | H38: 0 | I38: 1014.399 | J38: =SUM(J7:J37) -> 70187.349
A39: Енергія, МДж | C39: =SUMPRODUCT($B$7:$B$37,C7:C37) -> 2367709.045 | D39: 147730.0915 | E39: 13308.75456 | F39: 45043.45882 | G39: 61439.11869 | H39: 0 | I39: 38642.09731 | J39: =SUMPRODUCT(B7:B37,J7:J37) -> 2673872.566
A40: Теплота згоряння (середньозважене значення за місяць), МДж/м³ | C40: =C39/C38 -> 38.0965323 | D40: =D39/D38 -> 38.09371453 | E40: 38.09379955 | F40: 38.0940394 | G40: =G39/G38 -> 38.0939122 | H40: =H39/H38 ->  | I40: =I39/I38 -> 38.09358774 | J40: =J39/J38 -> 38.09621824
A41: Теплота згоряння (середньозважене значення за місяць), ккал/м³ | C41: =C40*238.8459 -> 9099.200544 | D41: =D40*238.8459 -> 9098.527531 | E41: 9098.547837 | F41: 9098.605125 | G41: =G40*238.8459 -> 9098.574743 | I41: 9098.497248 | J41: 9099.125533
A42: Теплота згоряння (середньозважене значення за місяць), кВт*год./м³ | C42: =C40/3.6 -> 10.58237008 | D42: =D40/3.6 -> 10.58158737 | E42: 10.58161099 | F42: 10.58167761 | G42: =G40/3.6 -> 10.58164228 | I42: 10.58155215 | J42: 10.58228285
D46: 38.09533947 | E46: 38.09302494 | F46: 38.09275973 | G46: 38.09307194 | H46: 38.09290352 | J46: 38.0925563 | K46: 38.09506152
D47: 9098.915642 | E47: 9098.362826 | F47: 9098.299481 | G47: 9098.37405 | H47: 9098.333825 | J47: 9098.250893 | K47: 9098.849254
D48: 10.58203874 | E48: 10.58139582 | F48: 10.58132215 | G48: 10.58140887 | H48: 10.58136209 | J48: 10.58126564 | K48: 10.58196153
D51: 38.09533947 | E51: 9098.915642 | F51: 10.58203874
D52: 38.09302494 | E52: 9098.362826 | F52: 10.58139582
D53: 38.09275973 | E53: 9098.299481 | F53: 10.58132215
D54: 38.09307194 | E54: 9098.37405 | F54: 10.58140887
D55: 38.09290352 | E55: 9098.333825 | F55: 10.58136209
D57: 38.0925563 | E57: 9098.250893 | F57: 10.58126564
D58: 38.09506152 | E58: 9098.849254 | F58: 10.58196153

Sheet додаток
A2: Додаток до Паспорту фізико-хімічних показників природного газу №26
A4: Область | B4: ГРС, прямий споживач | C4: Cередньозважене значення вищої теплоти згоряння
C5: МДж/м³ | D5: ккал/м³ | E5: кВт*год./м³
A6: Київська область | B6: ГРС ТЕЦ-5 | C6: 38.09533947 | D6: 9098.915642 | E6: 10.58203874
B7: ГРС - 11 (місто) | C7: 38.09302494 | D7: 9098.915642 | E7: 10.58139582
B8: ГРС Гнідин | C8: 38.09275973 | D8: 9098.915642 | E8: 10.58132215
B9: ГРС Конча Заспа | C9: 38.09307194 | D9: 9098.915642 | E9: 10.58140887
B10: ГРС Бортничі | C10: 38.09290352 | D10: 9098.915642 | E10: 10.58136209
B11: ГРС Осокорки | C11: 38.09290352 | D11: 9098.915642 | E11: 10.58136209
B12: ГРС Осокорки-1 | C12: 38.0925563 | D12: 9098.250893 | E12: 10.58126564
A13: Середньозважене значення вищої теплоти згоряння по маршруту № 26 | C13: 38.09506152 | D13: 9098.849254 | E13: 10.58196153
A31: Головний інженер Боярського ЛВУМГ Табак С.М. 03.04.2017 р.
A32: Підрозділу підприємства, якому підпорядкована лабораторія | D32: прізвище | E32: підпис | F32: дата
A33: Завідувач вимірювальної хіміко-аналітичної лабораторії Клименко І.А. 03.04.2017 р.
A34: Лабораторія, де здійснювалось вимірювання газу | D34: прізвище | E34: підпис | F34: дата
A35: Начальник служби газовимірювань та метрології Прима Ю.І. 03.04.2017 р.
A36: Підрозділу, відповідального за облік газу за маршрутом | D36: прізвище | E36: підпис | F36: дата

Sheet variablesList (hidden)
A1: 3 | B1: x:\gaysin | C1: 10, 11, 24, 25, 127, 128, 132, 180, 207, 215 | D1: x:\
B2: x:\Illinci
B3: x:\Talne
